fUSD/lending_fUSD_20240330
["ID","MTS","AMOUNT","RATE_DAILY","PERIOD"]
[321027445,1711797032059,-155.16133325,0.00033,4]
[321027446,1711797032068,-157.13253594,0.00035211,2]
[321027447,1711797032077,-157.13253594,0.00037523,2]
[321027448,1711797032087,-670.91,0.00037932,2]
[321027449,1711797032096,-155.19232694,0.00038698,4]
[321027450,1711797032105,-349.23,0.00038698,2]
[321027451,1711797032114,-8231.52,0.00039132,2]
[321027452,1711797032124,-174.34,0.00039325,2]
[321027453,1711797032133,-1313.52,0.00039495,2]
[321027454,1711797032142,-153.63,0.00039639,2]
[321027455,1711797032152,-476.94,0.00039639,2]
[321027456,1711797032161,-250.0,0.00039661,2]
[321027457,1711797032170,-615.68,0.00039738,2]
[321027458,1711797032180,-157.13253594,0.00039834,2]
[321027459,1711797032190,-816.17,0.0003999,10]
[321027460,1711797032199,-991.4,0.0003999,10]
[321027461,1711797032209,-826.17,0.0003999,10]
[321027462,1711797032218,-3308.98817124,0.00039996,2]
[321027463,1711797032226,-343.10938847,0.00039999,4]
[321027464,1711797032236,-3342.25187115,0.0004,4]
[321027465,1711797032245,-175062.94744872,0.0004,7]
[321027466,1711797032254,-18517.26040695,0.00040096,2]
[321027467,1711797032264,-670.91,0.00040196,2]
[321027468,1711797032274,-1420.77,0.00040202,2]
[321027469,1711797032283,-180.21,0.00040255,2]
[321027470,1711797032292,-158.54,0.00040314,15]
[321027471,1711797032301,-175.14,0.00040323,2]
[321027472,1711797032311,-413.54,0.00040784,2]
[321027473,1711797032320,-384.32,0.00040883,2]
[321027474,1711797032330,-2732.49635176,0.00040941,2]
[321027527,1711797040497,-576.49181947,0.00040941,2]
[321027529,1711797040508,-6580.65756909,0.0004103,2]
[321027531,1711797040521,-716.49885658,0.0004103,2]
[321027534,1711797040532,-477.69249999,0.0004103,2]
[321027537,1711797040555,-10742.41148123,0.0004103,2]
[321027539,1711797040565,-3000.0,0.000411,2]
[321027541,1711797040575,-158.54,0.00041206,15]
[321027543,1711797040585,-174.34,0.00041374,2]
[321027545,1711797040596,-200.0,0.000418,15]
[321027547,1711797040607,-3308.98817123,0.00041886,2]
[321027557,1711797040872,-500.0,0.000419,15]
[321027558,1711797040888,-18517.26040689,0.00041964,2]
[321027559,1711797040898,-215.47494859,0.00042,2]
[321027560,1711797040907,-205.98326482,0.00042047,14]
[321027561,1711797040917,-157.13253594,0.00042145,2]
[321027562,1711797040926,-548.19956647,0.00042145,4]
[321027563,1711797040935,-2781.68265531,0.00042145,4]
[321027564,1711797040946,-218.90140169,0.00042145,4]
[321027565,1711797040955,-2162.89736187,0.00042145,4]
[321027566,1711797040965,-192.21755063,0.00042145,4]
[321027567,1711797040974,-503.18153396,0.00042145,4]
[321027568,1711797040983,-195.28360126,0.00042145,4]
[321027569,1711797040993,-323.17336322,0.00042145,4]
[321027570,1711797041002,-155.0,0.00042145,4]
[321027571,1711797041011,-898.77564095,0.00042145,4]
[321027572,1711797041021,-201.70306154,0.00042145,4]
[321027573,1711797041031,-377.07530359,0.00042145,4]
[321027574,1711797041041,-1238.94442072,0.00042145,4]
[321027575,1711797041051,-2347.15576646,0.00042145,4]
[321027576,1711797041061,-203.26531134,0.00042145,4]
[321027577,1711797041070,-311.98057188,0.00042145,4]
[321027578,1711797041080,-1043.94196735,0.00042145,4]
[321027579,1711797041090,-169.3620795,0.00042145,4]
[321027580,1711797041100,-155.0,0.00042145,4]
[321027581,1711797041110,-155.34283485,0.00042145,4]
[321027582,1711797041119,-6627.37424436,0.00042146,2]
[321027583,1711797041129,-446.43690151,0.00042146,4]
[321027584,1711797041139,-4697.47901234,0.00042146,4]
[321027585,1711797041148,-500.0,0.00042147,2]
[321027586,1711797041158,-535.2,0.00042147,2]
[321027587,1711797041168,-245000.0,0.00042147,2]
[321027588,1711797041177,-1000.0,0.00042147,2]
[321027589,1711797041186,-169.57228838,0.00042156,6]
[321027590,1711797041198,-153.67751816,0.00042156,14]
[321027591,1711797041208,-184.66683163,0.00042156,2]
[321027592,1711797041217,-4480.54359126,0.00042156,16]
[321027593,1711797041227,-2879.74439731,0.00042245,2]
[321027594,1711797041236,-150.23290408,0.00042246,2]
[321027595,1711797041246,-808.32318404,0.00042246,4]
[321027596,1711797041255,-345.21232142,0.00042246,4]
[321027597,1711797041265,-309.55652023,0.00042246,4]
[321027598,1711797041274,-437.73313324,0.00042246,4]
[321027599,1711797041283,-1635.48,0.00042255,2]
[321027600,1711797041292,-1635.48,0.00042255,2]
[321027601,1711797041301,-1635.48,0.00042255,2]
[321027602,1711797041310,-1635.48,0.00042255,2]
[321027603,1711797041320,-1635.48,0.00042255,2]
[321027604,1711797041329,-1635.48,0.00042255,2]
[321027605,1711797041338,-1635.48,0.00042255,2]
[321027606,1711797041348,-1635.48,0.00042255,2]
[321027607,1711797041357,-1635.48,0.00042255,2]
[321027608,1711797041367,-1635.48,0.00042255,2]
[321027609,1711797041377,-1635.48,0.00042255,2]
[321027610,1711797041387,-1635.48,0.00042255,2]
[321027611,1711797041396,-1635.48,0.00042255,2]
[321027612,1711797041405,-1635.48,0.00042255,2]
[321027613,1711797041415,-1635.48,0.00042255,2]
[321027614,1711797041426,-1635.48,0.00042255,2]
[321027615,1711797041441,-1635.48,0.00042255,2]
[321027616,1711797041451,-1635.48,0.00042255,2]
[321027617,1711797041461,-1635.48,0.00042255,2]
[321027618,1711797041471,-1635.48,0.00042255,2]
[321027619,1711797041483,-1635.48,0.00042255,2]
[321027620,1711797041492,-1635.48,0.00042255,2]
[321027621,1711797041501,-1635.48,0.00042255,2]
[321027622,1711797041514,-1635.59533217,0.00042255,2]
[321027623,1711797041524,-151.03302,0.00042255,24]
[321027624,1711797041533,-179.15,0.00042255,120]
[321027625,1711797041543,-172808.17797978,0.00042256,7]
[321027626,1711797041554,-944.35049736,0.00042256,4]
[321027627,1711797041564,-1242.87159686,0.00042256,2]
[321027628,1711797041573,-19278.53882341,0.00042256,7]
[321027629,1711797041583,-1259.63419459,0.00042256,2]
[321027630,1711797041593,-37793.68295837,0.00042256,2]
[321027631,1711797041602,-1065.47550773,0.00042256,7]
[321027632,1711797041612,-379112.94716805,0.00042256,2]
[321027633,1711797041622,-85107.19340719,0.00042256,7]
[321027634,1711797041645,-340.0090999,0.00042256,7]
[321027635,1711797041665,-3221.68137956,0.00042256,7]
[321027636,1711797041674,-527.67161279,0.00042256,7]
[321027637,1711797041684,-65503.79327459,0.00042256,2]
[321027638,1711797041697,-2548.77046977,0.00042256,2]
[321027639,1711797041724,-724.48694538,0.00042256,2]
[321027640,1711797041736,-2605.46915252,0.00042256,2]
[321027642,1711797043002,-688.48,0.00042137,10]
[321027643,1711797043013,-3869.57342716,0.00042256,2]
[321027644,1711797043026,-652.87179538,0.00042256,2]
[321027645,1711797043062,-16914.296404,0.00042256,2]
[321027646,1711797043179,-1285.90608737,0.00042256,2]
[321027647,1711797043345,-9262.82477647,0.00042256,2]
[321027648,1711797043458,-5645.15018466,0.00042256,2]
[321027649,1711797043472,-6860.47558357,0.00042256,2]
[321027661,1711797055556,676.6361,0.0003,4]
[321027662,1711797057185,155.0,0.0003,4]
[321027663,1711797067784,404.20972107,0.0003,4]
[321027664,1711797069307,1595.21136198,0.0003,4]
[321027665,1711797075082,198.1608951,0.0003,4]
[321027677,1711798057172,359.42818938,0.0003,2]
[321027706,1711798232191,-435.60504467,0.0003289,4]
[321027707,1711798232201,-357.57162506,0.00032891,4]
[321027708,1711798232211,-222.14993865,0.00032891,4]
[321027709,1711798232221,-212.63889439,0.00032892,4]
[321027710,1711798232231,-347.38532077,0.00032892,4]
[321027711,1711798232240,-161.75286921,0.000329,2]
[321027712,1711798232250,-250.0,0.00033,3]
[321027713,1711798232263,-300.0,0.00035,3]
[321027714,1711798232273,-350.0,0.00037,3]
[321027715,1711798232283,-161.7528692,0.00037549,2]
[321027716,1711798232292,-353.43,0.00037549,2]
[321027717,1711798232302,-130.75723752,0.00038752,2]
[321027718,1711798232531,-401.33938146,0.00038752,2]
[321027719,1711798232543,-96.07338102,0.00038752,2]
[321027720,1711798232552,-251.35461498,0.0004,120]
[321027721,1711798232576,-3348.64538502,0.0004,120]
[321027722,1711798232586,-33.09976548,0.00040149,2]
[321027723,1711798232606,-188.23023452,0.00040149,2]
[321027725,1711798232616,-1093.89,0.00040252,2]
[321027727,1711798232626,-153.63,0.00040301,2]
[321027728,1711798232635,-500.0,0.00040418,10]
[321027729,1711798232644,-1000.0,0.00040418,10]
[321027730,1711798232653,-800.0,0.00040418,10]
[321027731,1711798232663,-170.35,0.00040473,2]
[321027732,1711798232672,-85.56057833,0.00040619,2]
[321027735,1711798238166,-1009.03942167,0.00040619,2]
[321027736,1711798238176,-158.54,0.00040625,15]
[321027737,1711798238186,-492.55,0.00040649,2]
[321027738,1711798238195,-499.99,0.00040649,2]
[321027739,1711798238204,-347.0,0.000407,2]
[321027740,1711798238214,-1000.0,0.00040966,10]
[321027741,1711798238223,-628.17,0.00041016,2]
[321027742,1711798238233,-2544.74554576,0.000411,2]
[321027743,1711798238276,-455.25445424,0.000411,2]
[321027744,1711798238286,-130.45322015,0.00041193,2]
[321027745,1711798238334,-214.15677985,0.00041193,2]
[321027746,1711798238343,-172.54884267,0.00041251,2]
[321027747,1711798238390,-334.90115733,0.00041251,2]
[321027748,1711798238400,-500.0,0.00041514,30]
[321027749,1711798238410,-800.0,0.00041514,30]
[321027750,1711798238421,-168.67,0.00041525,2]
[321027751,1711798238430,-573.38,0.00042049,2]
[321027752,1711798238440,-2500.0,0.00042049,2]
[321027753,1711798238450,-3121.74090754,0.00042054,2]
[321027754,1711798238470,-746.89027862,0.00042054,2]
[321027755,1711798238507,-3179.65363776,0.00042054,2]
[321027756,1711798238519,-2983.533175,0.00042054,2]
[321027761,1711798240184,-59339.14000108,0.00042054,2]
[321027762,1711798240194,-13157.28514488,0.00042054,2]
[321027763,1711798240203,-500.0,0.00042062,30]
[321027764,1711798240213,-1000.0,0.00042062,30]
[321027765,1711798240222,-800.0,0.00042062,30]
[321027766,1711798240233,-704.90118748,0.00042069,2]
[321027767,1711798240244,-716.22,0.00042109,2]
[321027768,1711798240255,-844.77,0.00042109,2]
[321027769,1711798240265,-1000.0,0.00042147,5]
[321027770,1711798240274,-3849.7775075,0.00042149,2]
[321027771,1711798240450,-2123.82,0.00042149,2]
[321027772,1711798240462,-359.72533981,0.00042149,2]
[321027773,1711798240474,-1063.50284155,0.00042149,2]
[321027774,1711798240751,1468713.19918401,0.0003,4]
[321027777,1711798243280,-5349.76750434,0.00042149,2]
[321027778,1711798243462,-634.12454835,0.00042149,2]
[321027779,1711798243529,-2831.04068242,0.00042149,2]
[321027780,1711798243569,-102095.79317603,0.00042149,2]
[321027781,1711798243585,-160.32532238,0.00042157,2]
[321027782,1711798243600,-9559.40241944,0.00042164,2]
[321027783,1711798243616,-384028.32912171,0.00042167,2]
[321027784,1711798243634,-464.19606063,0.00042167,2]
[321027785,1711798243655,-392.4809798,0.00042167,2]
[321027787,1711798243706,-293.33957425,0.00042167,2]
[321027788,1711798243723,-411.7493109,0.00042167,2]
[321027792,1711798245530,1595.21136198,0.0003,4]
[321027799,1711798246407,-215.83870014,0.00042148,4]
[321027800,1711798246417,-323.22652077,0.00042148,4]
[321027801,1711798246426,-7482.23107909,0.00042167,2]
[321027802,1711798246609,-178954.81676838,0.00042167,2]
[321027803,1711798246618,-1621.71353279,0.00042167,4]
[321027804,1711798246628,-1621.71353279,0.00042168,4]
[321027805,1711798246637,-179.56383991,0.00042169,2]
[321027806,1711798246647,-364.9285,0.00042169,2]
[321027807,1711798246656,-33017.62970955,0.00042169,2]
[321027808,1711798255723,178.69072463,0.0003,2]
[321027809,1711798259126,201.64568481,0.0003,4]
[321027810,1711798259576,20905.355591,0.0003,4]
[321027811,1711798262932,2032.37531808,0.0003,4]
[321027857,1711799433010,-1045.00516987,0.000379,2]
[321027860,1711799433020,-212.63889439,0.000379,4]
[321027862,1711799433030,-430.03638279,0.00037901,2]
[321027863,1711799433040,-273.07511644,0.00037902,4]
[321027864,1711799433049,-161.68497595,0.00037903,2]
[321027865,1711799433058,-587.82772787,0.00037999,4]
[321027866,1711799433068,-989.18359131,0.00038,4]
[321027867,1711799433082,-344.55077122,0.00038,4]
[321027868,1711799433095,-350.995,0.00038,4]
[321027881,1711799433792,-2839.02769617,0.00038,4]
[321027882,1711799433802,-1279.5620117,0.00038001,4]
[321027883,1711799433811,-1000.0,0.00038001,2]
[321027884,1711799433821,-1556.31599807,0.00038005,4]
[321027885,1711799433831,-6187.9985,0.00038012,2]
[321027886,1711799433841,-629.11,0.00038217,2]
[321027887,1711799433850,-3347.8317364,0.0004,4]
[321027888,1711799433860,-499.99,0.0004,2]
[321027889,1711799433869,-4000.0,0.0004,7]
[321027890,1711799433878,-4000.0,0.0004,8]
[321027891,1711799433887,-441.01478568,0.0004,15]
[321027892,1711799433896,-546.40226944,0.0004008,4]
[321027893,1711799433905,-728.58,0.00040081,2]
[321027894,1711799433914,-221.33,0.00040104,2]
[321027895,1711799433923,-166.95,0.00040139,2]
[321027896,1711799433933,-685.66989825,0.00040162,2]
[321027897,1711799433942,-2665.58,0.00040163,2]
[321027898,1711799433952,-158.54,0.0004018,15]
[321027899,1711799433962,-912.16,0.00040197,2]
[321027900,1711799433971,-153.36,0.00040354,2]
[321027901,1711799433981,-18346.41,0.00040418,2]
[321027902,1711799433990,-700.0,0.00040418,10]
[321027903,1711799434000,-394.04,0.00040456,2]
[321027904,1711799434010,-629.11,0.00040481,2]
[321027905,1711799434021,-882.0,0.000405,2]
[321027906,1711799434030,-153.36,0.00040654,2]
[321027907,1711799434039,-153.36,0.00040954,2]
[321027908,1711799434049,-700.0,0.00040966,10]
[321027909,1711799434059,-3000.0,0.000411,2]
[321027910,1711799434068,-287.17,0.00041122,2]
[321027911,1711799434078,-153.36,0.00041255,2]
[321027912,1711799434089,-153.36,0.00041555,2]
[321027913,1711799434100,-254.8313,0.0004165,2]
[321027914,1711799434111,-2026.3554,0.0004165,2]
[321027915,1711799434120,-400.0,0.000417,15]
[321027916,1711799434130,-150.0,0.00041732,2]
[321027917,1711799434139,-9625.69289096,0.0004175,2]
[321027920,1711799438639,-605.96,0.00039988,2]
[321027921,1711799438650,-13465.66413675,0.0004175,2]
[321027922,1711799438660,-500.0,0.00041788,30]
[321027923,1711799438669,-800.0,0.000418,15]
[321027924,1711799438678,-3334.55148601,0.000418,2]
[321027925,1711799438688,-573.73,0.00041855,10]
[321027926,1711799438697,-153.36,0.00041856,2]
[321027927,1711799438706,-557.00446148,0.00041863,4]
[321027928,1711799438716,-283.79529727,0.00041863,4]
[321027929,1711799438725,-238.40860617,0.00041863,4]
[321027930,1711799438736,-272.77183676,0.00041863,4]
[321027931,1711799438745,-155.49200959,0.00041863,4]
[321027933,1711799438754,-268.91317088,0.00041863,4]
[321027934,1711799438763,-230.710396,0.00041863,4]
[321027936,1711799438773,-155.0,0.00041864,4]
[321027938,1711799438783,-29287.3707,0.00041865,2]
[321027939,1711799438792,-14365.9559,0.00041865,2]
[321027941,1711799438801,-443.511,0.00041865,2]
[321027943,1711799438811,-316.22,0.0004189,30]
[321027944,1711799438820,-1000.0,0.000419,2]
[321027946,1711799438830,-2500.0,0.000419,2]
[321027948,1711799438841,-1200.0,0.000419,15]
[321027949,1711799438851,-187.25429215,0.000419,10]
[321027951,1711799438862,-11145.0,0.00041921,3]
[321027953,1711799438871,-205.98326482,0.00041932,14]
[321027955,1711799438881,-292.63997449,0.00041932,2]
[321027956,1711799438890,-153.57747843,0.00041932,14]
[321027958,1711799438899,-657.907775,0.00041932,2]
[321027960,1711799438909,-161.68497594,0.00041932,2]
[321027961,1711799438918,-881.64955079,0.00041964,4]
[321027963,1711799438928,-206.0,0.00041965,2]
[321027965,1711799438938,-39840.6441,0.00041965,2]
[321027966,1711799438947,-287.00925042,0.0004199,2]
[321027968,1711799438957,-36442.8925514,0.00041997,2]
[321027970,1711799438966,-34175.50171329,0.00042,10]
[321027972,1711799438975,-9500.62168659,0.00042,2]
[321027973,1711799438983,-200.0,0.00042,2]
[321027975,1711799438992,-200.0,0.00042,2]
[321027977,1711799439002,-1000.0,0.00042,2]
[321027978,1711799439010,-3865.01515085,0.00042,120]
[321027980,1711799439019,-189.0,0.00042,2]
[321027982,1711799439028,-624.97839779,0.00042,2]
[321027984,1711799439037,-624.97839779,0.00042,2]
[321027985,1711799439046,-624.97839779,0.00042,2]
[321027986,1711799439055,-624.97839779,0.00042,2]
[321027987,1711799439063,-624.97839779,0.00042,2]
[321027988,1711799439072,-624.97839779,0.00042,2]
[321028002,1711799439275,-624.97839779,0.00042,2]
[321028004,1711799439285,-624.97839779,0.00042,2]
[321028006,1711799439294,-624.97839779,0.00042,2]
[321028008,1711799439303,-624.97839779,0.00042,2]
[321028010,1711799439312,-624.97839779,0.00042,2]
[321028012,1711799439322,-624.97839779,0.00042,2]
[321028014,1711799439331,-624.97839779,0.00042,2]
[321028016,1711799439341,-624.97839779,0.00042,2]
[321028018,1711799439350,-624.97839779,0.00042,2]
[321028020,1711799439359,-624.97839779,0.00042,2]
[321028022,1711799439369,-624.97839779,0.00042,2]
[321028023,1711799439378,-1057031.4252449,0.00042,2]
[321028024,1711799439387,-2018.0,0.00042,2]
[321028025,1711799439396,-1117.18384238,0.00042,2]
[321028026,1711799439406,-1117.18384238,0.00042,2]
[321028027,1711799439415,-1117.18384238,0.00042,2]
[321028028,1711799439424,-1117.18384238,0.00042,2]
[321028029,1711799439434,-1117.18384238,0.00042,2]
[321028030,1711799439444,-1117.18384238,0.00042,2]
[321028031,1711799439453,-1117.18384238,0.00042,2]
[321028032,1711799439463,-1117.18384238,0.00042,2]
[321028033,1711799439472,-1117.18384238,0.00042,2]
[321028034,1711799439482,-1117.18384238,0.00042,2]
[321028035,1711799439491,-1117.18384238,0.00042,2]
[321028036,1711799439500,-1117.18384238,0.00042,2]
[321028037,1711799439509,-1117.18384238,0.00042,2]
[321028038,1711799439518,-1117.18384238,0.00042,2]
[321028040,1711799439527,-1117.18384238,0.00042,2]
[321028042,1711799439537,-1117.18384238,0.00042,2]
[321028044,1711799439548,-1117.18384238,0.00042,2]
[321028046,1711799439557,-1117.18384238,0.00042,2]
[321028048,1711799439566,-1117.18384238,0.00042,2]
[321028050,1711799439578,-1117.18384238,0.00042,2]
[321028052,1711799439588,-1117.18384238,0.00042,2]
[321028053,1711799439597,-1117.18384238,0.00042,2]
[321028054,1711799439606,-1117.18384238,0.00042,2]
[321028055,1711799439615,-1117.18384238,0.00042,2]
[321028056,1711799439625,-1117.18384238,0.00042,2]
[321028057,1711799439634,-1117.18384238,0.00042,2]
[321028058,1711799439643,-1117.18384238,0.00042,2]
[321028059,1711799439652,-1117.18384238,0.00042,2]
[321028060,1711799439661,-1117.18384238,0.00042,2]
[321028061,1711799439670,-1117.18384238,0.00042,2]
[321028062,1711799439679,-1117.18384238,0.00042,2]
[321028063,1711799439689,-1117.18384238,0.00042,2]
[321028064,1711799439698,-1117.18384238,0.00042,2]
[321028065,1711799439707,-1117.18384238,0.00042,2]
[321028066,1711799439717,-1117.18384238,0.00042,2]
[321028067,1711799439726,-1117.18384238,0.00042,2]
[321028068,1711799439736,-1117.18384238,0.00042,2]
[321028069,1711799439745,-1117.18384238,0.00042,2]
[321028070,1711799439754,-1117.18384238,0.00042,2]
[321028071,1711799439764,-1117.18384238,0.00042,2]
[321028072,1711799439773,-1117.18384238,0.00042,2]
[321028073,1711799439782,-1117.18384238,0.00042,2]
[321028074,1711799439792,-1117.18384238,0.00042,2]
[321028075,1711799439801,-1117.18384238,0.00042,2]
[321028076,1711799439810,-1117.18384238,0.00042,2]
[321028077,1711799439820,-1117.18384238,0.00042,2]
[321028078,1711799439830,-1117.18384238,0.00042,2]
[321028079,1711799439840,-1117.18384238,0.00042,2]
[321028080,1711799439850,-1117.18384238,0.00042,2]
[321028081,1711799439859,-1117.18384238,0.00042,2]
[321028082,1711799439869,-1117.18384238,0.00042,2]
[321028083,1711799439878,-1117.18384238,0.00042,2]
[321028084,1711799439887,-1117.18384238,0.00042,2]
[321028085,1711799439897,-1117.18384238,0.00042,2]
[321028086,1711799439907,-1117.18384238,0.00042,2]
[321028087,1711799439917,-1117.18384238,0.00042,2]
[321028088,1711799439927,-1117.18384238,0.00042,2]
[321028089,1711799439938,-1117.18384238,0.00042,2]
[321028090,1711799439947,-1117.18384238,0.00042,2]
[321028091,1711799439957,-1117.18384238,0.00042,2]
[321028092,1711799439966,-1117.18384238,0.00042,2]
[321028093,1711799439975,-1117.18384238,0.00042,2]
[321028094,1711799439984,-1117.18384238,0.00042,2]
[321028095,1711799439993,-1117.18384238,0.00042,2]
[321028096,1711799440002,-1117.18384238,0.00042,2]
[321028097,1711799440012,-1117.18384238,0.00042,2]
[321028098,1711799440021,-1117.18384238,0.00042,2]
[321028099,1711799440030,-1117.18384238,0.00042,2]
[321028100,1711799440039,-1117.18384238,0.00042,2]
[321028101,1711799440049,-1117.18384238,0.00042,2]
[321028102,1711799440059,-1117.18384238,0.00042,2]
[321028103,1711799440069,-1117.18384238,0.00042,2]
[321028104,1711799440078,-1117.18384238,0.00042,2]
[321028105,1711799440088,-1117.18384238,0.00042,2]
[321028107,1711799440097,-1117.18384238,0.00042,2]
[321028108,1711799440109,-1117.18384238,0.00042,2]
[321028110,1711799440118,-1117.18384238,0.00042,2]
[321028111,1711799440127,-1117.18384238,0.00042,2]
[321028112,1711799440137,-1117.18384238,0.00042,2]
[321028114,1711799440147,-1117.18384238,0.00042,2]
[321028116,1711799440156,-1117.18384238,0.00042,2]
[321028117,1711799440166,-1117.18384238,0.00042,2]
[321028118,1711799440175,-1117.18384238,0.00042,2]
[321028119,1711799440184,-1117.18384238,0.00042,2]
[321028120,1711799440194,-1117.18384238,0.00042,2]
[321028121,1711799440203,-1117.18384238,0.00042,2]
[321028122,1711799440212,-1117.18384238,0.00042,2]
[321028123,1711799440222,-1117.18384238,0.00042,2]
[321028124,1711799440231,-1117.18384238,0.00042,2]
[321028125,1711799440240,-1117.18384238,0.00042,2]
[321028126,1711799440250,-1117.18384238,0.00042,2]
[321028128,1711799440259,-1117.18384238,0.00042,2]
[321028129,1711799440269,-1117.18384238,0.00042,2]
[321028130,1711799440278,-1117.18384238,0.00042,2]
[321028131,1711799440287,-1117.18384238,0.00042,2]
[321028132,1711799440296,-1117.18384238,0.00042,2]
[321028133,1711799440305,-1117.18384238,0.00042,2]
[321028134,1711799440316,-1117.18384238,0.00042,2]
[321028135,1711799440326,-1117.18384238,0.00042,2]
[321028136,1711799440338,-1117.18384238,0.00042,2]
[321028137,1711799440347,-700.0,0.00042062,30]
[321028138,1711799440358,-500.0,0.00042062,30]
[321028139,1711799440367,-9110.72313785,0.00042062,2]
[321028140,1711799440376,-500.0,0.00042064,2]
[321028141,1711799440385,-500.0,0.00042064,2]
[321028142,1711799440395,-500.0,0.00042064,2]
[321028143,1711799440404,-500.0,0.00042064,2]
[321028144,1711799440413,-500.0,0.00042064,2]
[321028145,1711799440423,-500.0,0.00042064,2]
[321028146,1711799440432,-500.0,0.00042064,2]
[321028147,1711799440441,-500.0,0.00042064,2]
[321028148,1711799440451,-500.0,0.00042064,2]
[321028149,1711799440460,-500.0,0.00042064,2]
[321028150,1711799440469,-500.0,0.00042064,2]
[321028151,1711799440479,-500.0,0.00042064,2]
[321028152,1711799440488,-500.0,0.00042064,2]
[321028153,1711799440498,-384.20761074,0.00042064,2]
[321028154,1711799440506,-245000.0,0.00042065,2]
[321028155,1711799440516,-276.9581,0.00042069,2]
[321028156,1711799440525,-100000.0,0.00042069,2]
[321028157,1711799440536,-500.0,0.00042069,2]
[321028158,1711799440546,-1000.0,0.00042069,2]
[321028159,1711799440556,-637.2944,0.00042069,2]
[321028160,1711799440565,-150.44805289,0.00042127,2]
[321028161,1711799440574,-191.19,0.00042139,15]
[321028162,1711799440583,-200.0,0.00042145,2]
[321028163,1711799440593,-4514.48710329,0.00042145,16]
[321028164,1711799440602,-414.85707433,0.00042146,2]
[321028165,1711799440611,-287.00925042,0.00042149,2]
[321028166,1711799440621,-150.5,0.00042149,15]
[321028167,1711799440630,-7696.70113443,0.00042155,2]
[321028168,1711799440639,-153.36,0.00042156,2]
[321028169,1711799440648,-17862.6588335,0.00042159,2]
[321028170,1711799440658,-34804.7042022,0.00042159,2]
[321028171,1711799440666,-360234.6043607,0.00042159,2]
[321028172,1711799440676,-279.944075,0.00042159,2]
[321028173,1711799440684,-67411.09798841,0.00042159,2]
[321028174,1711799440699,-104505.75030649,0.00042159,2]
[321028175,1711799440708,-822.6279757,0.00042159,2]
[321028176,1711799440721,-93000.0,0.00042164,30]
[321028177,1711799440731,-200.0,0.00042165,2]
[321028178,1711799440740,-162.0,0.00042165,2]
[321028179,1711799440750,-530.72631733,0.00042165,4]
[321028180,1711799440759,-2631.80646209,0.00042165,4]
[321028181,1711799440771,-434.19933751,0.00042166,4]
[321028182,1711799440781,-976.38140538,0.00042168,60]
[321028183,1711799440791,-657.90598,0.00042168,12]
[321028184,1711799440801,-403.33795978,0.00042168,4]
[321028185,1711799440811,-212.0,0.00042169,2]
[321028186,1711799440821,-292.63997449,0.00042174,2]
[321028187,1711799440831,-335.93289025,0.00042188,2]
[321028188,1711799440842,-486.29,0.000422,7]
[321028189,1711799440851,-25652.4711307,0.00042217,2]
[321028190,1711799440861,-200.0,0.00042244,2]
[321028191,1711799440870,-704.24460064,0.00042246,4]
[321028192,1711799440880,-156.283579,0.00042254,4]
[321028193,1711799440890,-157.03302,0.00042256,25]
[321028194,1711799440900,-151.033019,0.00042257,26]
[321028195,1711799440909,-157.033019,0.00042258,27]
[321028196,1711799440919,-9110.72313785,0.00042265,2]
[321028197,1711799440929,-1000.0,0.00042268,5]
[321028198,1711799440939,-1000.0,0.00042268,5]
[321028199,1711799440949,-178.4,0.00042298,2]
[321028200,1711799440959,-1123.60533946,0.000423,30]
[321028201,1711799440968,-152.0,0.00042375,7]
[321028202,1711799440978,-150.0,0.00042409,2]
[321028203,1711799440988,-292.63997449,0.00042416,2]
[321028204,1711799441001,-153.36,0.00042456,2]
[321028205,1711799441011,-3334.55148598,0.00042533,2]
[321028206,1711799441020,-700.0,0.0004261,30]